{"text_format":"1","workbook":"xlsx","n_sheets":2,"sheets":["Lineups","PlayerIDs"],"not_rendered":{"charts":0,"images":1,"macros":1,"external_links":0,"defined_names":3,"comments":0,"pivot_tables":0},"unopened":[],"bounds":{"document_bytes":16777216,"sheet_cells":100000,"rows_first":2000,"rows_last":500,"rows_between":2000,"halvings":0,"cell_chars":16384,"cell_head_chars":4096},"cells_cut":0,"cells_raw":0,"read":"whole","date_system":"1900"}

{"sheet":"Lineups","index":0,"n_rows":22,"n_cols":12,"rows_kept":22,"cut":false,"hidden":false,"merged":[[2,13,2,14],[1,1,1,5],[1,7,1,11],[0,1,0,11],[18,2,18,10]]}
[null,"Fantasy Basketball Simulator"]
[null,"My Team",null,null,null,null,null,"Their Team"]
[null,"ID Number","Name","Position","Games     Played","Stat     Adjustment",null,"ID Number","Name","Position","Games     Played","Stat     Adjustment"]
[null,{"$f":"IF(ISNUMBER(VLOOKUP(Lineups!C4,PlayerIDs!$A$2:$B$500,2,FALSE))=FALSE,0,VLOOKUP(Lineups!C4,PlayerIDs!$A$2:$B$500,2,FALSE))","v":4244},"Kevin Durant",{"$f":"VLOOKUP(Lineups!C4,PlayerIDs!$A$1:$C$500,3,FALSE)","v":"SF"},3,1,null,{"$f":"IF(ISNUMBER(VLOOKUP(Lineups!I4,PlayerIDs!$A$2:$B$500,2,FALSE))=FALSE,0,VLOOKUP(Lineups!I4,PlayerIDs!$A$2:$B$500,2,FALSE))","v":3929},"Deron Williams",{"$f":"VLOOKUP(Lineups!I4,PlayerIDs!$A$1:$C$500,3,FALSE)","v":"PG"},3,1]
[null,{"$f":"IF(ISNUMBER(VLOOKUP(Lineups!C5,PlayerIDs!$A$2:$B$500,2,FALSE))=FALSE,0,VLOOKUP(Lineups!C5,PlayerIDs!$A$2:$B$500,2,FALSE))","v":3704},"LeBron James",{"$f":"VLOOKUP(Lineups!C5,PlayerIDs!A2:C501,3,FALSE)","v":"SF"},3,1,null,{"$f":"IF(ISNUMBER(VLOOKUP(Lineups!I5,PlayerIDs!$A$2:$B$500,2,FALSE))=FALSE,0,VLOOKUP(Lineups!I5,PlayerIDs!$A$2:$B$500,2,FALSE))","v":3966},"Monta Ellis",{"$f":"VLOOKUP(Lineups!I5,PlayerIDs!$A$1:$C$500,3,FALSE)","v":"PG"},3,1]
[null,{"$f":"IF(ISNUMBER(VLOOKUP(Lineups!C6,PlayerIDs!$A$2:$B$500,2,FALSE))=FALSE,0,VLOOKUP(Lineups!C6,PlayerIDs!$A$2:$B$500,2,FALSE))","v":3930},"Chris Paul",{"$f":"VLOOKUP(Lineups!C6,PlayerIDs!A3:C502,3,FALSE)","v":"PG"},3,1,null,{"$f":"IF(ISNUMBER(VLOOKUP(Lineups!I6,PlayerIDs!$A$2:$B$500,2,FALSE))=FALSE,0,VLOOKUP(Lineups!I6,PlayerIDs!$A$2:$B$500,2,FALSE))","v":4245},"Al Horford",{"$f":"VLOOKUP(Lineups!I6,PlayerIDs!$A$1:$C$500,3,FALSE)","v":"C"},3,1]
[null,{"$f":"IF(ISNUMBER(VLOOKUP(Lineups!C7,PlayerIDs!$A$2:$B$500,2,FALSE))=FALSE,0,VLOOKUP(Lineups!C7,PlayerIDs!$A$2:$B$500,2,FALSE))","v":4391},"Kevin Love",{"$f":"VLOOKUP(Lineups!C7,PlayerIDs!A4:C503,3,FALSE)","v":"PF"},3,1,null,{"$f":"IF(ISNUMBER(VLOOKUP(Lineups!I7,PlayerIDs!$A$2:$B$500,2,FALSE))=FALSE,0,VLOOKUP(Lineups!I7,PlayerIDs!$A$2:$B$500,2,FALSE))","v":3327},"Lamar Odom",{"$f":"VLOOKUP(Lineups!I7,PlayerIDs!$A$1:$C$500,3,FALSE)","v":"SF"},3,1]
[null,{"$f":"IF(ISNUMBER(VLOOKUP(Lineups!C8,PlayerIDs!$A$2:$B$500,2,FALSE))=FALSE,0,VLOOKUP(Lineups!C8,PlayerIDs!$A$2:$B$500,2,FALSE))","v":3708},"Dwyane Wade",{"$f":"VLOOKUP(Lineups!C8,PlayerIDs!A5:C504,3,FALSE)","v":"SG"},3,1,null,{"$f":"IF(ISNUMBER(VLOOKUP(Lineups!I8,PlayerIDs!$A$2:$B$500,2,FALSE))=FALSE,0,VLOOKUP(Lineups!I8,PlayerIDs!$A$2:$B$500,2,FALSE))","v":3706},"Carmelo Anthony",{"$f":"VLOOKUP(Lineups!I8,PlayerIDs!$A$1:$C$500,3,FALSE)","v":"SF"},3,1]
[null,{"$f":"IF(ISNUMBER(VLOOKUP(Lineups!C9,PlayerIDs!$A$2:$B$500,2,FALSE))=FALSE,0,VLOOKUP(Lineups!C9,PlayerIDs!$A$2:$B$500,2,FALSE))","v":4387},"Derrick Rose",{"$f":"VLOOKUP(Lineups!C9,PlayerIDs!A6:C505,3,FALSE)","v":"PG"},3,1,null,{"$f":"IF(ISNUMBER(VLOOKUP(Lineups!I9,PlayerIDs!$A$2:$B$500,2,FALSE))=FALSE,0,VLOOKUP(Lineups!I9,PlayerIDs!$A$2:$B$500,2,FALSE))","v":4130},"LaMarcus Aldridge",{"$f":"VLOOKUP(Lineups!I9,PlayerIDs!$A$1:$C$500,3,FALSE)","v":"PF"},3,1]
[null,{"$f":"IF(ISNUMBER(VLOOKUP(Lineups!C10,PlayerIDs!$A$2:$B$500,2,FALSE))=FALSE,0,VLOOKUP(Lineups!C10,PlayerIDs!$A$2:$B$500,2,FALSE))","v":3818},"Dwight Howard",{"$f":"VLOOKUP(Lineups!C10,PlayerIDs!A7:C506,3,FALSE)","v":"C"},3,1,null,{"$f":"IF(ISNUMBER(VLOOKUP(Lineups!I10,PlayerIDs!$A$2:$B$500,2,FALSE))=FALSE,0,VLOOKUP(Lineups!I10,PlayerIDs!$A$2:$B$500,2,FALSE))","v":3118},"Kobe Bryant",{"$f":"VLOOKUP(Lineups!I10,PlayerIDs!$A$1:$C$500,3,FALSE)","v":"SG"},3,1]
[null,{"$f":"IF(ISNUMBER(VLOOKUP(Lineups!C11,PlayerIDs!$A$2:$B$500,2,FALSE))=FALSE,0,VLOOKUP(Lineups!C11,PlayerIDs!$A$2:$B$500,2,FALSE))","v":3513},"Pau Gasol",{"$f":"VLOOKUP(Lineups!C11,PlayerIDs!A8:C507,3,FALSE)","v":"PF"},3,1,null,{"$f":"IF(ISNUMBER(VLOOKUP(Lineups!I11,PlayerIDs!$A$2:$B$500,2,FALSE))=FALSE,0,VLOOKUP(Lineups!I11,PlayerIDs!$A$2:$B$500,2,FALSE))","v":3834},"Josh Smith",{"$f":"VLOOKUP(Lineups!I11,PlayerIDs!$A$1:$C$500,3,FALSE)","v":"SF"},3,1]
[null,{"$f":"IF(ISNUMBER(VLOOKUP(Lineups!C12,PlayerIDs!$A$2:$B$500,2,FALSE))=FALSE,0,VLOOKUP(Lineups!C12,PlayerIDs!$A$2:$B$500,2,FALSE))","v":4612},"Stephen Curry",{"$f":"VLOOKUP(Lineups!C12,PlayerIDs!A9:C508,3,FALSE)","v":"PG"},3,1,null,{"$f":"IF(ISNUMBER(VLOOKUP(Lineups!I12,PlayerIDs!$A$2:$B$500,2,FALSE))=FALSE,0,VLOOKUP(Lineups!I12,PlayerIDs!$A$2:$B$500,2,FALSE))","v":4136},"Rudy Gay",{"$f":"VLOOKUP(Lineups!I12,PlayerIDs!$A$1:$C$500,3,FALSE)","v":"SF"},3,1]
[null,{"$f":"IF(ISNUMBER(VLOOKUP(Lineups!C13,PlayerIDs!$A$2:$B$500,2,FALSE))=FALSE,0,VLOOKUP(Lineups!C13,PlayerIDs!$A$2:$B$500,2,FALSE))","v":3252},"Dirk Nowitzki",{"$f":"VLOOKUP(Lineups!C13,PlayerIDs!A10:C509,3,FALSE)","v":"PF"},3,1,null,{"$f":"IF(ISNUMBER(VLOOKUP(Lineups!I13,PlayerIDs!$A$2:$B$500,2,FALSE))=FALSE,0,VLOOKUP(Lineups!I13,PlayerIDs!$A$2:$B$500,2,FALSE))","v":3533},"Gerald Wallace",{"$f":"VLOOKUP(Lineups!I13,PlayerIDs!$A$1:$C$500,3,FALSE)","v":"SF"},3,1]
[null,{"$f":"IF(ISNUMBER(VLOOKUP(Lineups!C14,PlayerIDs!$A$2:$B$500,2,FALSE))=FALSE,0,VLOOKUP(Lineups!C14,PlayerIDs!$A$2:$B$500,2,FALSE))","v":3832},"Al Jefferson",{"$f":"VLOOKUP(Lineups!C14,PlayerIDs!A11:C510,3,FALSE)","v":"C"},3,1,null,{"$f":"IF(ISNUMBER(VLOOKUP(Lineups!I14,PlayerIDs!$A$2:$B$500,2,FALSE))=FALSE,0,VLOOKUP(Lineups!I14,PlayerIDs!$A$2:$B$500,2,FALSE))","v":3943},"Danny Granger",{"$f":"VLOOKUP(Lineups!I14,PlayerIDs!$A$1:$C$500,3,FALSE)","v":"SF"},3,1]
[null,{"$f":"IF(ISNUMBER(VLOOKUP(Lineups!C15,PlayerIDs!$A$2:$B$500,2,FALSE))=FALSE,0,VLOOKUP(Lineups!C15,PlayerIDs!$A$2:$B$500,2,FALSE))","v":4390},"Russell Westbrook",{"$f":"VLOOKUP(Lineups!C15,PlayerIDs!A12:C511,3,FALSE)","v":"PG"},3,1,null,{"$f":"IF(ISNUMBER(VLOOKUP(Lineups!I15,PlayerIDs!$A$2:$B$500,2,FALSE))=FALSE,0,VLOOKUP(Lineups!I15,PlayerIDs!$A$2:$B$500,2,FALSE))","v":3956},"David Lee",{"$f":"VLOOKUP(Lineups!I15,PlayerIDs!$A$1:$C$500,3,FALSE)","v":"PF"},3,1]
[]
[]
[]
[null,null,"Simulation Results"]
[null,null,"Category","Points","FG%","Rebounds","Assists","Blocks","Turnovers","Steals","Score"]
[null,null,"My Team"]
[null,null,"Their Team"]

{"sheet":"PlayerIDs","index":1,"n_rows":152,"n_cols":3,"rows_kept":152,"cut":false,"hidden":false,"merged":[]}
["Name","ID","Position"]
["Kevin Durant",4244,"SF"]
["LeBron James",3704,"SF"]
["Chris Paul",3930,"PG"]
["Kevin Love",4391,"PF"]
["Dwyane Wade",3708,"SG"]
["Derrick Rose",4387,"PG"]
["Dwight Howard",3818,"C"]
["Pau Gasol",3513,"PF"]
["Stephen Curry",4612,"PG"]
["Dirk Nowitzki",3252,"PF"]
["Al Jefferson",3832,"C"]
["Russell Westbrook",4390,"PG"]
["Deron Williams",3929,"PG"]
["Monta Ellis",3966,"PG"]
["Al Horford",4245,"C"]
["Amar'e Stoudemire",3607,"PF"]
["Carmelo Anthony",3706,"SF"]
["LaMarcus Aldridge",4130,"PF"]
["Kobe Bryant",3118,"SG"]
["Josh Smith",3834,"SF"]
["Rudy Gay",4136,"SF"]
["Gerald Wallace",3533,"SF"]
["Danny Granger",3943,"SF"]
["Blake Griffin",4561,"PF"]
["Eric Gordon",4469,"SG"]
["David Lee",3956,"PF"]
["Dorell Wright",3836,"SG"]
["Rajon Rondo",4149,"PG"]
["Paul Millsap",4175,"PF"]
["Serge Ibaka",4486,"C"]
["Paul Pierce",3253,"SF"]
["Manu Ginobili",3380,"SF"]
["Brook Lopez",4472,"C"]
["Nene Hilari",3605,"C"]
["Steve Nash",3103,"PG"]
["Kevin Martin",3843,"SG"]
["Zach Randolph",3531,"PF"]
["John Wall",4716,"PG"]
["Andre Iguodala",3826,"SG"]
["Chauncey Billups",3174,"PG"]
["Chris Bosh",3707,"PF"]
["Jrue Holiday",4622,"PG"]
["Kyle Lowry",4152,"PG"]
["Joakim Noah",4287,"C"]
["Greg Monroe",4722,"C"]
["Marcin Gortat",3983,"SG"]
["Raymond Felton",3931,"PG"]
["David West",3721,"PF"]
["Channing Frye",3934,"PF"]
["Elton Brand",3324,"PF"]
["Luol Deng",3824,"SF"]
["Kevin Garnett",3007,"PF"]
["Joe Johnson",3520,"SF"]
["Mike Conley",4246,"PG"]
["Ray Allen",3080,"SG"]
["Danilo Gallinari",4468,"SF"]
["Marc Gasol",4325,"C"]
["Tyreke Evans",4564,"SG"]
["Andrew Bogut",3927,"C"]
["Jason Kidd",2625,"PG"]
["JaVale McGee",4480,"PF"]
["Andray Blatche",3975,"PF"]
["Jason Richardson",3515,"SG"]
["Tim Duncan",3173,"PF"]
["Ty Lawson",4623,"PG"]
["James Harden",4563,"SG"]
["Marcus Thornton",4648,"SG"]
["Lamar Odom",3327,"SF"]
["Carlos Boozer",3632,"PF"]
["Andrea Bargnani",4129,"C"]
["Jason Terry",3333,"PG"]
["Andrew Bynum",3936,"C"]
["Brandon Jennings",4615,"PG"]
["Wesley Matthew",4694,"SG"]
["Antawn Jamison",3247,"PF"]
["Hedo Turkoglu",3415,"SF"]
["Tony Parker",3527,"PG"]
["Jared Dudley",4300,"SG"]
["Luis Scola",3653,"PF"]
["Mo Williams",3750,"PG"]
["Stephen Jackson",3210,"SF"]
["Roy Hibbert",4479,"C"]
["DeMar DeRozan",4614,"SG"]
["Nicolas Batum",4487,"SG"]
["Tony Allen",3842,"SG"]
["Darren Collison",4626,"PG"]
["Austin Daye",4620,"SF"]
["C.J. Miles",3960,"SG"]
["Chuck Hayes",4023,"PF"]
["Nick Young",4294,"SG"]
["Kris Humphries",3831,"PF"]
["D.J. Augustin",4471,"PG"]
["Boris Diaw",3724,"PF"]
["Michael Beasley",4388,"SG"]
["Carlos Delfino",3728,"SG"]
["Jose Calderon",3989,"PG"]
["Tyson Chandler",3512,"C"]
["Arron Afflalo",4305,"SG"]
["Rodney Stuckey",4293,"PG"]
["Charlie Villanueva",3933,"PG"]
["Carlos Delfino ",3728,"SG"]
["Rodney Stuckey ",4293,"PG"]
["Chase Budinger ",4649,"SG"]
["Arron Afflalo ",4305,"SG"]
["John Salmons ",3627,"SG"]
["Jameer Nelson ",3837,"PG"]
["Kyrie Irving ",4840,"PG"]
["Charlie Villanueva ",3933,"PF"]
["Anderson Varejao ",3847,"C"]
["Nicolas Batum ",4487,"PG"]
["Mike Miller ",3404,"SF"]
["Tyler Hansbrough ",4618,"PF"]
["Wilson Chandler ",4301,"SG"]
["Anthony Morrow ",4527,"SG"]
["Trevor Ariza ",3860,"SG"]
["Toney Douglas ",4634,"PG"]
["Ben Wallace ",3149,"C"]
["Marcus Camby ",3084,"C"]
["Derek Fisher ",3125,"PG"]
["Andrei Kirilenko ",3347,"SF"]
["Baron Davis ",3326,"PG"]
["Peja Stojakovic ",3119,"SF"]
["Brandon Roy ",4134,"SF"]
["Zydrunas Ilgauskas ",3121,"C"]
["Paul George ",4625,"SG"]
["Jermaine O'Neal ",3120,"C"]
["Chris Kaman ",3709,"C"]
["Caron Butler ",3608,"SF"]
["Jimmer Fredette ",4891,"PG"]
["Kyle Korver ",3754,"SF"]
["Kemba Walker ",4890,"PG"]
["Mario Chalmers ",4496,"PG"]
["Ronnie Brewer ",4142,"SG"]
["Gerald Henderson ",4617,"SG"]
["Corey Maggette ",3336,"SF"]
["Robin Lopez ",4477,"C"]
["Derrick Williams ",4883,"SF"]
["Enes Kanter ",4899,"C"]
["Tracy McGrady ",3179,"SG"]
["Jonas Valanciunas ",4886,"C"]
["Gordon Hayward ",4724,"SG"]
["Jan Vesely ",4887,"SF"]
["Jodie Meeks ",4646,"SG"]
["Marvin Williams ",3928,"SF"]
["Mike Dunleavy ",3601,"SG"]
["Landry Fields ",4770,"SG"]
["Glen Davis ",4313,"PF"]
["Andre Miller ",3331,"PG"]
["Shane Battier ",3516,"SF"]
["Drew Gooden ",3602,"PF"]
["Jimmer Fredette",4891,"PG"]